bitfinex/quotes_BTCUSD_20220405
["timestamp","ask_amount","ask_price","bid_price","bid_amount"]
[1649127305116,0.47625566,46622.0,46621.0,0.672236]
[1649127305363,0.47625566,46622.0,46621.0,0.35]
[1649127305837,0.47191218,46622.0,46621.0,0.62086689]
[1649127305937,0.47191218,46622.0,46621.0,0.35]
[1649127306990,0.47191218,46622.0,46621.0,0.59758443]
[1649127307342,0.47191218,46622.0,46621.0,0.91982043]
[1649127308293,0.47191218,46622.0,46621.0,0.59758443]
[1649127308394,0.47191218,46622.0,46621.0,0.91982043]
[1649127308698,0.47191218,46622.0,46621.0,0.59758443]
[1649127308795,0.47191218,46622.0,46621.0,0.91982043]
[1649127310059,0.46909861,46622.0,46621.0,0.91982043]
[1649127312964,0.46909861,46622.0,46621.0,0.59758443]
[1649127313065,0.46909861,46622.0,46621.0,0.91982043]
[1649127313408,0.46909861,46622.0,46621.0,0.59758443]
[1649127313507,0.46909861,46622.0,46621.0,0.91982043]
[1649127315115,0.34252651,46622.0,46621.0,0.91982043]
[1649127315315,0.34252651,46622.0,46621.0,0.96982043]
[1649127315565,0.34252651,46622.0,46621.0,1.02343243]
[1649127315765,0.02896851,46622.0,46621.0,1.02343243]
[1649127316416,0.00176855,46625.0,46622.0,3.853611]
[1649127316516,0.00176855,46625.0,46623.0,0.375848]
[1649127316615,0.00176855,46625.0,46623.0,0.725848]
[1649127316716,0.00176855,46625.0,46624.0,0.672236]
[1649127317190,0.00176855,46625.0,46624.0,0.872236]
[1649127317292,0.004,46632.0,46624.0,0.872236]
[1649127317399,0.004,46632.0,46627.0,0.053607]
[1649127317492,0.004,46632.0,46630.0,0.15]
[1649127317590,0.004,46632.0,46631.0,0.3]
[1649127317992,0.004,46632.0,46630.0,0.10360748]
[1649127318590,0.004,46632.0,46630.0,0.15721548]
[1649127319443,0.214,46632.0,46630.0,0.15721548]
[1649127328542,0.214,46632.0,46631.0,0.322236]
[1649127328640,0.214,46632.0,46631.0,0.65325416]
[1649127328740,0.214,46632.0,46631.0,0.33101816]
[1649127329040,0.214,46632.0,46631.0,0.65325416]
[1649127329742,0.214,46632.0,46631.0,0.33101816]
[1649127329891,0.214,46632.0,46631.0,0.65325416]
[1649127330293,0.214,46632.0,46631.0,0.33101816]
[1649127330397,0.214,46632.0,46631.0,0.65325416]
[1649127330892,0.214,46632.0,46631.0,0.35325416]
[1649127331294,0.214,46632.0,46631.0,0.65325416]
[1649127331397,0.004,46633.0,46632.0,3.4064358]
[1649127331493,0.004,46633.0,46632.0,3.7286718]
[1649127331894,0.004,46633.0,46632.0,3.4064358]
[1649127332071,0.004,46633.0,46632.0,3.7286718]
[1649127332462,0.004,46633.0,46632.0,0.5786718]
[1649127332617,0.004,46633.0,46632.0,0.8786718]
[1649127334365,0.004,46633.0,46632.0,0.5564358]
[1649127334465,0.004,46633.0,46632.0,0.2564358]
[1649127334565,0.004,46633.0,46632.0,0.5786718]
[1649127334668,0.004,46633.0,46632.0,0.2564358]
[1649127336314,0.004,46633.0,46632.0,0.5786718]
[1649127336718,0.004,46633.0,46632.0,0.2564358]
[1649127337768,0.004,46633.0,46632.0,0.5786718]
[1649127337968,0.004,46633.0,46632.0,0.2564358]
[1649127338569,0.004,46633.0,46632.0,0.5786718]
[1649127338918,0.004,46633.0,46632.0,0.2564358]
[1649127339020,0.004,46633.0,46632.0,0.5786718]
[1649127339120,0.004,46633.0,46632.0,0.2564358]
[1649127339815,0.004,46633.0,46632.0,0.5786718]
[1649127339916,0.214,46633.0,46632.0,0.2564358]
[1649127340116,0.214,46633.0,46632.0,0.5786718]
[1649127340666,0.209,46633.0,46632.0,0.5786718]
[1649127340768,0.209,46633.0,46632.0,0.3064358]
[1649127340869,0.209,46633.0,46632.0,0.6286718]
[1649127341267,0.0011,46634.0,46632.0,0.6286718]
[1649127341370,0.0011,46634.0,46633.0,0.322236]
[1649127341569,0.0011,46634.0,46632.0,0.3600438]
[1649127342619,0.0011,46634.0,46633.0,0.322236]
[1649127343715,0.0011,46634.0,46632.0,0.3600438]
[1649127344114,0.0011,46634.0,46633.0,0.322236]
[1649127344466,0.0011,46634.0,46632.0,0.3600438]
[1649127344564,0.0011,46634.0,46633.0,0.322236]
[1649127346268,0.0011,46634.0,46633.0,0.622236]
[1649127346667,0.0011,46634.0,46633.0,0.3]
[1649127346769,0.0011,46634.0,46633.0,0.622236]
[1649127346869,0.0011,46634.0,46633.0,0.3]
[1649127346970,0.0011,46634.0,46633.0,0.622236]
[1649127347110,0.0011,46634.0,46633.0,0.3]
[1649127347210,0.0011,46634.0,46633.0,0.622236]
[1649127348061,0.0011,46634.0,46633.0,0.3]
[1649127348211,0.0011,46634.0,46633.0,0.622236]
[1649127348713,0.0011,46634.0,46633.0,0.322236]
[1649127349013,0.0011,46634.0,46632.0,0.3600438]
[1649127349115,0.0011,46634.0,46633.0,0.322236]
[1649127349785,0.0011,46634.0,46633.0,0.298236]
[1649127349865,0.0011,46634.0,46633.0,0.322125]
[1649127349969,0.0011,46634.0,46633.0,0.372125]
[1649127350114,0.0011,46634.0,46633.0,0.672125]
[1649127350317,0.0011,46634.0,46633.0,0.35]
[1649127350475,0.0011,46634.0,46633.0,0.672125]
[1649127351036,0.0011,46634.0,46633.0,0.372125]
[1649127351287,0.0011,46634.0,46633.0,0.05]
[1649127351391,0.0011,46634.0,46633.0,0.372125]
[1649127351487,0.0011,46634.0,46633.0,0.322125]
[1649127351837,0.0011,46634.0,46632.0,0.6064358]
[1649127351937,0.0011,46634.0,46633.0,0.322125]
[1649127352139,0.0011,46634.0,46632.0,0.6064358]
[1649127352238,0.0011,46634.0,46632.0,1.1064358]
[1649127352337,0.00052,46634.0,46633.0,0.322125]
[1649127352539,0.00052,46634.0,46632.0,0.8064358]
[1649127353793,0.00052,46634.0,46632.0,0.3064358]
[1649127354562,0.00052,46634.0,46633.0,0.322125]
[1649127354619,0.00052,46634.0,46632.0,0.3064358]
[1649127354870,0.00052,46634.0,46633.0,0.322125]
[1649127354967,0.00052,46634.0,46632.0,0.3064358]
[1649127355471,0.00052,46634.0,46633.0,0.322125]
[1649127355574,0.00052,46634.0,46632.0,0.3064358]
[1649127355822,0.00052,46634.0,46633.0,0.322125]
[1649127356123,0.00052,46634.0,46632.0,0.3064358]
[1649127356922,0.00052,46634.0,46633.0,0.322125]
[1649127357021,0.00052,46634.0,46632.0,0.3064358]
[1649127357222,0.00052,46634.0,46633.0,0.322125]
[1649127357322,0.00052,46634.0,46632.0,0.3064358]
[1649127357422,0.00052,46634.0,46633.0,0.322125]
[1649127357525,0.00052,46634.0,46632.0,0.3064358]
[1649127357821,0.00052,46634.0,46633.0,0.322125]
[1649127358126,0.00052,46634.0,46632.0,0.3064358]
[1649127358222,0.00052,46634.0,46633.0,0.322125]
[1649127358471,0.00052,46634.0,46632.0,0.3064358]
[1649127358572,0.00052,46634.0,46633.0,0.322125]
[1649127358773,0.00052,46634.0,46633.0,0.622125]
[1649127359376,0.00052,46634.0,46633.0,0.3]
[1649127359475,0.00052,46634.0,46633.0,0.622125]
[1649127359575,0.00052,46634.0,46633.0,0.3]
[1649127360176,0.00251192,46636.0,46633.0,0.3]
[1649127360283,0.00251192,46636.0,46632.0,0.3064358]
[1649127360377,0.00194257,46636.0,46632.0,0.3064358]
[1649127361283,0.00194257,46636.0,46633.0,0.322125]
[1649127361381,0.00194257,46636.0,46632.0,0.3064358]
[1649127361682,0.00194257,46636.0,46633.0,0.322125]
[1649127361782,0.00194257,46636.0,46632.0,0.3064358]
[1649127361881,0.00251192,46636.0,46632.0,0.3064358]
[1649127362276,0.00251192,46636.0,46633.0,0.322125]
[1649127362377,0.00251192,46636.0,46632.0,0.3064358]
[1649127362779,0.00194257,46636.0,46633.0,0.322125]
[1649127362876,0.00194257,46636.0,46632.0,0.3064358]
[1649127363078,0.00251192,46636.0,46633.0,0.322125]
[1649127363179,0.00251192,46636.0,46632.0,0.3064358]
[1649127363981,0.00194257,46636.0,46632.0,0.3064358]
[1649127364229,0.28836592,46635.0,46632.0,0.3064358]
[1649127364631,0.00251192,46636.0,46632.0,0.3064358]
[1649127365183,0.00251192,46636.0,46632.0,0.2564358]
[1649127365184,0.00194257,46636.0,46632.0,0.2564358]
[1649127365485,0.00251192,46636.0,46632.0,0.2564358]
[1649127365685,0.2706389,46635.0,46632.0,0.2564358]
[1649127367684,0.00194257,46636.0,46633.0,0.322125]
[1649127367784,0.00251192,46636.0,46634.0,0.622125]
[1649127367885,0.00251192,46636.0,46634.0,0.372125]
[1649127368737,0.00194257,46636.0,46634.0,0.372125]
[1649127368840,0.00194257,46636.0,46634.0,0.37187192]
[1649127372180,0.00194257,46636.0,46634.0,0.42187192]
[1649127373027,0.00194257,46636.0,46634.0,0.09974692]
[1649127373131,0.00194257,46636.0,46633.0,0.15360582]
[1649127373229,0.00194257,46636.0,46632.0,0.3564358]
[1649127373935,0.00251314,46636.0,46632.0,0.3564358]
[1649127374737,0.00194257,46636.0,46632.0,0.3564358]
[1649127375040,0.00251305,46636.0,46632.0,0.3564358]
[1649127375791,0.00251305,46636.0,46633.0,0.322125]
[1649127375995,0.00194257,46636.0,46632.0,0.3564358]
[1649127376597,0.00194257,46636.0,46633.0,0.322125]
[1649127376696,0.00194257,46636.0,46632.0,0.3564358]
[1649127376796,0.00172066,46636.0,46632.0,0.3564358]
[1649127377073,0.00172066,46636.0,46633.0,0.322125]
[1649127377167,0.00172066,46636.0,46632.0,0.3564358]
[1649127377570,0.00172066,46636.0,46633.0,0.322125]
[1649127377669,0.00229114,46636.0,46632.0,0.3564358]
[1649127377967,0.00229114,46636.0,46633.0,0.322125]
[1649127378169,0.00229114,46636.0,46634.0,0.322125]
[1649127378270,0.00229114,46636.0,46633.0,0.322125]
[1649127378374,0.00172066,46636.0,46635.0,0.05]
[1649127378621,0.00172066,46636.0,46635.0,0.372125]
[1649127378721,0.00172066,46636.0,46633.0,0.1]
[1649127378821,0.00172066,46636.0,46634.0,0.322125]
[1649127379274,0.00172066,46636.0,46635.0,0.322125]
[1649127379374,0.00172066,46636.0,46635.0,0.1]
[1649127379723,0.00172066,46636.0,46635.0,0.05]
[1649127379827,0.00172066,46636.0,46635.0,0.372125]
[1649127379924,0.00172066,46636.0,46632.0,0.41004283]
[1649127380426,0.00172066,46636.0,46632.0,0.46364983]
[1649127380529,0.00172066,46636.0,46633.0,0.322125]
[1649127380629,0.00172066,46636.0,46632.0,0.46364983]
[1649127380729,0.00172066,46636.0,46633.0,0.322125]
[1649127381430,0.00172066,46636.0,46634.0,0.053606]
[1649127381528,0.00172066,46636.0,46635.0,0.322125]
[1649127381627,0.00172066,46636.0,46635.0,0.5786968]
[1649127381778,0.00172066,46636.0,46635.0,0.422125]
[1649127383731,0.00172066,46636.0,46635.0,0.1]
[1649127383834,0.00172066,46636.0,46635.0,0.372125]
[1649127384032,0.00172066,46636.0,46635.0,0.422125]
[1649127384433,0.00172066,46636.0,46635.0,0.1]
[1649127384572,0.00172066,46636.0,46635.0,0.05]
[1649127384773,0.00172066,46636.0,46633.0,0.1]
[1649127384872,0.00172066,46636.0,46634.0,0.322125]
[1649127385274,0.00172066,46636.0,46633.0,0.1]
[1649127385375,0.00172066,46636.0,46634.0,0.322125]
[1649127386926,0.00172066,46636.0,46635.0,0.322125]
[1649127387127,0.00172066,46636.0,46635.0,0.422125]
[1649127393225,0.00172066,46636.0,46635.0,0.1]
[1649127393375,0.00172066,46636.0,46635.0,0.422125]
[1649127393475,0.00172066,46636.0,46635.0,0.1]
[1649127393574,0.00172066,46636.0,46633.0,0.05]
[1649127393778,0.00172066,46636.0,46634.0,0.322125]
[1649127393879,0.00172066,46636.0,46634.0,0.372125]
[1649127395384,0.00172066,46636.0,46635.0,0.322125]
[1649127395584,0.00172066,46636.0,46635.0,0.372125]
[1649127397044,0.79113357,46636.0,46635.0,0.372125]
[1649127397746,0.32083773,46636.0,46635.0,0.372125]
[1649127404977,0.012,46639.0,46636.0,3.75]
[1649127405077,0.012,46639.0,46637.0,0.322125]
[1649127405078,0.00057041,46638.0,46637.0,0.322125]
[1649127405175,0.012,46639.0,46638.0,1.75]
[1649127405176,0.00757041,46639.0,46638.0,1.75]
[1649127405274,0.00757041,46639.0,46638.0,2.072125]
[1649127405476,0.4968,46650.0,46638.0,2.122125]
[1649127405580,0.1968,46650.0,46640.0,0.053592]
[1649127405678,0.1968,46650.0,46641.0,0.622125]
[1649127405879,0.1968,46650.0,46641.0,0.722125]
[1649127405974,0.1968,46650.0,46645.0,0.322125]
[1649127406076,0.0032,46650.0,46645.0,0.322125]
[1649127406175,0.0032,46650.0,46644.0,0.05]
[1649127406273,0.0032,46650.0,46645.0,0.372125]
[1649127406474,0.0032,46650.0,46645.0,0.05]
[1649127406678,0.0032,46650.0,46644.0,0.2071827]
[1649127407377,0.0032,46650.0,46644.0,0.5071827]
[1649127407478,0.0011,46647.0,46645.0,0.3]
[1649127407678,0.0011,46647.0,46645.0,0.460771]
[1649127407778,0.0011,46647.0,46646.0,0.05]
[1649127415974,0.0011,46647.0,46646.0,0.35]
[1649127416078,0.00766945,46649.0,46647.0,3.75]
[1649127416179,0.00766945,46649.0,46648.0,0.3]
[1649127416275,0.00766945,46649.0,46647.0,3.8]
[1649127416374,0.00766945,46649.0,46647.0,3.85]
[1649127416575,0.00766945,46649.0,46648.0,0.3]
[1649127416778,0.0071,46649.0,46648.0,0.3]
[1649127417129,0.0011,46653.0,46649.0,0.322125]
[1649127417226,0.0011,46653.0,46650.0,0.482884]
[1649127417327,0.0011,46653.0,46651.0,0.05]
[1649127418531,0.22648736,46653.0,46651.0,0.05]
[1649127418630,0.22648736,46653.0,46651.0,0.103587]
[1649127419133,0.22648736,46653.0,46651.0,0.10338707]
[1649127420183,0.22648736,46653.0,46651.0,0.09480964]
[1649127420284,0.21791309,46653.0,46651.0,0.09480964]
[1649127420684,0.21766142,46653.0,46651.0,0.09480964]
[1649127422089,0.21766142,46653.0,46651.0,0.14480964]
[1649127425236,0.0111,46654.0,46651.0,0.14480964]
[1649127425436,0.0117081,46654.0,46651.0,0.14480964]
[1649127426427,0.0111,46654.0,46651.0,0.14480964]
[1649127427679,0.0111,46654.0,46651.0,0.19839664]
[1649127428931,0.0111,46654.0,46652.0,0.3]
[1649127430304,0.0111,46654.0,46653.0,0.322125]
[1649127430403,0.0111,46654.0,46653.0,0.40312867]
[1649127430504,0.0111,46654.0,46653.0,0.08100367]
[1649127430603,0.0111,46654.0,46653.0,0.13100367]
[1649127431103,0.0111,46654.0,46653.0,0.45312867]
[1649127431303,0.0111,46654.0,46653.0,0.13100367]
[1649127431405,0.0111,46654.0,46653.0,0.45312867]
[1649127432305,0.0111,46654.0,46653.0,0.08100367]
[1649127432406,0.0111,46654.0,46653.0,0.35312867]
[1649127432962,0.0111,46654.0,46653.0,0.03100367]
[1649127433062,0.0111,46654.0,46653.0,0.35312867]
[1649127433160,0.0111,46654.0,46653.0,0.03100367]
[1649127433331,0.0111,46654.0,46653.0,0.35312867]
[1649127433423,0.0111,46654.0,46653.0,0.03100367]
[1649127433524,0.0111,46654.0,46653.0,0.35312867]
[1649127433625,0.0111,46654.0,46653.0,0.03100367]
[1649127433726,0.0111,46654.0,46653.0,0.35312867]
[1649127433826,0.0111,46654.0,46653.0,0.03100367]
[1649127433977,0.0111,46654.0,46653.0,0.35312867]
[1649127436583,0.0111,46654.0,46653.0,0.65312867]
[1649127436683,0.0111,46654.0,46653.0,0.33100367]
[1649127436782,0.0111,46654.0,46653.0,0.65312867]
[1649127437690,0.0011,46655.0,46654.0,2.1722]
[1649127437893,0.0011,46655.0,46654.0,0.394325]
[1649127439749,0.0011,46655.0,46654.0,0.694325]
[1649127440347,0.0011,46655.0,46654.0,0.3722]
[1649127440495,0.0011,46655.0,46654.0,0.694325]
[1649127440958,0.0011,46655.0,46654.0,0.3722]
[1649127441158,0.0011,46655.0,46654.0,0.694325]
[1649127441260,0.0011,46655.0,46654.0,0.0722]
[1649127441360,0.0011,46655.0,46654.0,0.394325]
[1649127446737,0.0011,46655.0,46654.0,0.0722]
[1649127447037,0.01194952,46655.0,46654.0,0.0722]
[1649127447289,0.0011,46655.0,46654.0,0.0722]
[1649127447589,0.0011,46655.0,46654.0,0.394325]
[1649127447686,0.0011,46655.0,46654.0,0.0722]
[1649127447788,0.0011,46655.0,46654.0,0.394325]
[1649127447989,0.0011,46655.0,46654.0,0.0722]
[1649127448090,0.0011,46655.0,46654.0,0.394325]
[1649127449986,0.0011,46655.0,46654.0,0.0722]
[1649127450084,0.0011,46655.0,46654.0,0.394325]
[1649127451638,0.0011,46655.0,46654.0,0.0722]
[1649127451735,0.0011,46655.0,46654.0,0.394325]
[1649127452904,0.0011,46655.0,46654.0,0.0722]
[1649127453004,0.0011,46655.0,46654.0,0.394325]
[1649127456677,0.0011,46655.0,46654.0,0.0722]
[1649127456777,0.0011,46655.0,46654.0,0.394325]
[1649127456879,0.0011,46655.0,46654.0,0.0722]
[1649127456978,0.0011,46655.0,46654.0,1.61025207]
[1649127457483,0.0011,46655.0,46654.0,1.93237707]
[1649127457579,0.0011,46655.0,46654.0,1.61025207]
[1649127457781,0.0011,46655.0,46654.0,1.93237707]
[1649127457881,0.0011,46655.0,46654.0,1.61025207]
[1649127458483,0.0011,46655.0,46654.0,0.0722]
[1649127458586,0.0011,46655.0,46654.0,0.394325]
[1649127458836,0.0011,46655.0,46654.0,0.0722]
[1649127459031,0.0011,46655.0,46654.0,0.394325]
[1649127460999,0.0011,46655.0,46654.0,0.39421084]
[1649127461352,0.0011,46655.0,46654.0,0.07208584]
[1649127462356,0.0011,46655.0,46654.0,0.39421084]
[1649127462511,0.0011,46655.0,46654.0,0.0222]
[1649127464758,0.0011,46655.0,46654.0,0.344325]
[1649127467288,0.81433773,46655.0,46654.0,0.344325]
[1649127471095,0.82518725,46655.0,46654.0,0.0222]
[1649127472992,0.82415857,46655.0,46654.0,0.0222]
[1649127473195,0.82415857,46655.0,46654.0,0.344325]
[1649127474952,0.81433773,46655.0,46654.0,0.344325]
[1649127475056,0.82415805,46655.0,46654.0,0.344325]
[1649127477866,0.82415805,46655.0,46654.0,0.444325]
[1649127478164,0.34414353,46655.0,46654.0,0.444325]
[1649127478343,0.35396332,46655.0,46654.0,0.444325]
[1649127480095,0.35396332,46655.0,46654.0,0.43575073]
[1649127485242,0.35371473,46655.0,46654.0,0.43575073]
[1649127487103,0.34389494,46655.0,46654.0,0.43575073]
[1649127487202,0.35371442,46655.0,46654.0,0.43575073]
[1649127489154,0.35371442,46655.0,46654.0,0.38575073]
[1649127489840,0.3534348,46655.0,46654.0,0.38575073]
[1649127491539,0.3534348,46655.0,46654.0,0.88575073]
[1649127493760,0.3534348,46655.0,46654.0,0.38575073]
[1649127495011,0.35332027,46655.0,46654.0,0.38575073]
[1649127495362,0.35332027,46655.0,46654.0,0.43575073]
[1649127498395,0.35332027,46655.0,46654.0,0.38575073]
[1649127503406,0.34832027,46655.0,46654.0,0.38575073]
[1649127507141,0.34832027,46655.0,46654.0,0.06362573]
[1649127507251,0.34832027,46655.0,46654.0,0.0222]
[1649127507357,0.62285325,46655.0,46654.0,0.0222]
[1649127507446,0.98777825,46655.0,46654.0,0.0222]
[1649127508195,1.39290885,46655.0,46654.0,0.0222]
[1649127509569,0.98777825,46655.0,46654.0,0.0222]
[1649127509869,1.04138125,46655.0,46654.0,0.0222]
[1649127512696,1.45246683,46655.0,46654.0,0.0222]
[1649127512797,1.60428269,46655.0,46654.0,0.0222]
[1649127513198,1.19319711,46655.0,46654.0,0.0222]
[1649127513302,1.18247711,46655.0,46654.0,0.0222]
[1649127514954,1.51390374,46655.0,46654.0,0.0222]
[1649127516000,1.52462374,46655.0,46654.0,0.0222]
[1649127524570,1.52462374,46655.0,46654.0,0.02211597]
[1649127525872,1.62462374,46655.0,46654.0,0.02211597]
[1649127535054,1.82462374,46655.0,46654.0,0.02211597]
[1649127535654,1.19319711,46655.0,46654.0,0.02211597]
[1649127535809,0.81746911,46655.0,46654.0,0.02211597]
[1649127536005,1.13959411,46655.0,46654.0,0.02211597]
[1649127536106,0.81746911,46655.0,46654.0,0.02211597]
[1649127536205,0.99849825,46655.0,46654.0,0.02211597]
[1649127536305,0.67637325,46655.0,46654.0,0.02211597]
[1649127536555,0.99849825,46655.0,46654.0,0.02211597]
[1649127536757,0.02788403,46654.0,46645.0,0.00057045]
[1649127536860,0.00986532,46649.0,46645.0,0.00057045]
[1649127536957,0.00986532,46646.0,46645.0,0.00057045]
[1649127537056,0.00986532,46646.0,46645.0,0.32269545]
[1649127537157,0.00986532,46646.0,46645.0,0.37269545]
[1649127537359,0.00986532,46646.0,46645.0,0.05057045]
[1649127537559,0.00986532,46646.0,46641.0,0.03101131]
[1649127537661,0.24930998,46649.0,46640.0,0.05]
[1649127537761,0.24930998,46649.0,46639.0,0.114319]
[1649127537762,0.24930998,46649.0,46641.0,0.05359872]
[1649127537860,0.01072,46648.0,46643.0,0.00057043]
[1649127537960,0.24930998,46649.0,46643.0,0.00057043]
[1649127538410,0.24930998,46649.0,46644.0,0.322125]
[1649127538509,0.24930998,46649.0,46645.0,0.23921744]
[1649127538608,0.24930998,46649.0,46646.0,0.322125]
[1649127538760,0.00986553,46647.0,46646.0,0.372125]
[1649127538962,0.00986553,46647.0,46646.0,0.05]
[1649127539110,0.00986553,46647.0,46646.0,0.322125]
[1649127539209,0.00986553,46647.0,46646.0,0.372125]
[1649127539310,0.00986553,46647.0,46646.0,0.05]
[1649127539410,0.00986553,46647.0,46646.0,0.372125]
[1649127540313,0.00986553,46647.0,46646.0,0.05]
[1649127540412,0.00986553,46647.0,46646.0,0.372125]
[1649127540512,0.00986553,46647.0,46646.0,0.05]
[1649127541518,0.00986553,46647.0,46646.0,0.372125]
[1649127541663,0.00986553,46647.0,46646.0,0.05]
[1649127542608,0.00986553,46647.0,46644.0,0.0005619]
[1649127542707,0.24930998,46649.0,46645.0,0.322125]
[1649127542808,0.24930998,46649.0,46644.0,0.0005619]
[1649127542959,0.00986553,46645.0,46644.0,0.0005619]
[1649127543059,0.00986553,46645.0,46644.0,0.3226869]
[1649127543160,0.00986553,46645.0,46644.0,0.4226869]
[1649127543613,0.00986553,46645.0,46644.0,0.422125]
[1649127543813,0.009865,46645.0,46644.0,0.1]
[1649127543913,0.009865,46645.0,46644.0,0.422125]
[1649127544013,0.009865,46645.0,46644.0,0.372125]
[1649127544770,0.009865,46645.0,46644.0,0.05]
[1649127545267,0.009865,46645.0,46642.0,0.00057079]
[1649127545369,0.54930998,46649.0,46643.0,0.322125]
[1649127545469,0.54930998,46649.0,46642.0,0.00057079]
[1649127545568,0.69040584,46649.0,46642.0,0.00057079]
[1649127545771,0.54930998,46649.0,46642.0,0.00057079]
[1649127545909,0.24930998,46649.0,46642.0,0.00057079]
[1649127546009,0.24930998,46649.0,46639.0,0.1]
[1649127546010,0.54930998,46649.0,46639.0,0.1]
[1649127546208,0.54930998,46649.0,46643.0,0.00057078]
[1649127546410,0.56002998,46649.0,46643.0,0.00057078]
[1649127546859,0.70112584,46649.0,46643.0,0.00057078]
[1649127547063,0.322125,46647.0,46643.0,0.00057078]
[1649127547163,0.332778,46646.0,46643.0,0.00057078]
[1649127547263,0.3,46646.0,46639.0,0.1]
[1649127547364,0.0428,46645.0,46639.0,0.1]
[1649127547461,0.0428,46645.0,46643.0,0.00057041]
[1649127547564,0.01085336,46644.0,46643.0,0.00057041]
[1649127547763,0.08643136,46644.0,46643.0,0.00057041]
[1649127548465,0.08643136,46644.0,46635.0,0.8]
[1649127548567,0.29486188,46639.0,46635.0,0.8]
[1649127548767,0.3,46643.0,46640.0,0.17555641]
[1649127548866,0.30152215,46641.0,46640.0,0.17555641]
[1649127548966,0.30152215,46641.0,46640.0,0.22555641]
[1649127549066,0.34432215,46641.0,46640.0,0.22555641]
[1649127552619,0.45902559,46641.0,46640.0,0.22555641]
[1649127553221,0.33445651,46641.0,46640.0,0.22555641]
[1649127553363,0.33445604,46641.0,46640.0,0.22555641]
[1649127553966,0.33445604,46641.0,46640.0,0.17555641]
[1649127553967,0.95658104,46641.0,46640.0,0.17555641]
[1649127554174,1.05658104,46641.0,46640.0,0.17555641]
[1649127554275,1.25658104,46641.0,46640.0,0.17555641]
[1649127554370,1.3976769,46641.0,46640.0,0.17555641]
[1649127556827,1.0976769,46641.0,46640.0,0.17555641]
[1649127568220,1.08682296,46641.0,46640.0,0.17555641]
[1649127568371,1.09669166,46641.0,46640.0,0.17555641]
[1649127568761,0.79669166,46641.0,46640.0,0.17555641]
[1649127568862,1.09669166,46641.0,46640.0,0.17555641]
[1649127573212,1.09669166,46641.0,46640.0,0.17545542]
[1649127573414,1.08732166,46641.0,46640.0,0.16278091]
[1649127576968,0.78732166,46641.0,46640.0,0.16278091]
[1649127577070,1.08732166,46641.0,46640.0,0.16278091]
[1649127577369,0.78732166,46641.0,46640.0,0.16278091]
[1649127577571,0.6462258,46641.0,46640.0,0.16278091]
[1649127578524,0.64586695,46641.0,46640.0,0.16278091]
[1649127578722,0.3747937,46641.0,46640.0,0.16278091]
[1649127578922,0.33199317,46641.0,46640.0,0.16278091]
[1649127579023,0.00986817,46641.0,46640.0,0.16278091]
[1649127579224,0.01072,46643.0,46640.0,0.16278091]
[1649127579325,0.1428,46646.0,46640.0,0.16278091]
[1649127579326,0.00986764,46641.0,46640.0,0.16278091]
[1649127579669,0.32191767,46648.0,46640.0,0.21278091]
[1649127579739,0.02191767,46648.0,46640.0,0.21278091]
[1649127579937,0.01072,46648.0,46640.0,0.21278091]
[1649127580236,0.01072,46648.0,46642.0,0.05360134]
[1649127580340,0.01072,46648.0,46643.0,0.61973415]
[1649127580437,0.01072,46648.0,46643.0,0.29760915]
[1649127580539,0.01072,46649.0,46643.0,0.05]
[1649127580638,0.35609586,46650.0,46643.0,0.05]
[1649127580639,0.22572,46650.0,46643.0,0.05]
[1649127580937,0.22572,46650.0,46642.0,0.05360134]
[1649127580938,0.23999178,46649.0,46642.0,0.05360134]
[1649127581088,0.215,46650.0,46644.0,0.00053761]
[1649127581289,0.44398225,46650.0,46644.0,0.00053761]
[1649127581389,0.45470225,46650.0,46644.0,0.00053761]
[1649127582039,0.28727962,46649.0,46644.0,0.00053761]
[1649127582139,0.28727962,46649.0,46642.0,0.05360134]
[1649127582345,0.28727962,46649.0,46645.0,0.00053761]
[1649127582442,0.322125,46648.0,46645.0,0.00053761]
[1649127583363,0.42837548,46649.0,46640.0,0.21278091]
[1649127583464,0.42837548,46649.0,46644.0,0.00053761]
[1649127583565,0.43909548,46649.0,46644.0,0.00053761]
[1649127583662,0.322125,46648.0,46644.0,0.00053761]
[1649127584462,0.322125,46648.0,46640.0,0.21278091]
[1649127584563,0.42837548,46649.0,46640.0,0.21278091]
[1649127584663,0.42837548,46649.0,46644.0,0.00053761]
[1649127584765,0.322125,46648.0,46644.0,0.00053761]
[1649127585669,0.3,46647.0,46640.0,0.21278091]
[1649127585870,0.3,46647.0,46644.0,0.00053761]
[1649127585967,0.322125,46646.0,46644.0,0.00053761]
[1649127586169,0.27476421,46645.0,46644.0,0.00053761]
[1649127586267,0.4101877,46645.0,46644.0,0.00053761]
[1649127586369,0.28561746,46645.0,46644.0,0.00053761]
[1649127586870,0.28561746,46645.0,46640.0,0.21278091]
[1649127586969,0.27476421,46645.0,46640.0,0.21278091]
[1649127587117,0.27476421,46645.0,46642.0,0.00053762]
[1649127587213,0.01085325,46643.0,46642.0,0.00053762]
[1649127588116,0.01085325,46643.0,46640.0,0.21278091]
[1649127588215,0.27476421,46645.0,46640.0,0.21278091]
[1649127588365,0.27476421,46645.0,46640.0,0.21331854]
[1649127589317,0.27476421,46645.0,46640.0,0.21278091]
[1649127589518,0.27476421,46645.0,46640.0,0.21331854]
[1649127590466,0.27476421,46645.0,46640.0,0.21278091]
[1649127590667,0.27476421,46645.0,46640.0,0.21331854]
[1649127591670,0.27476421,46645.0,46640.0,0.21278091]
[1649127591865,0.27476421,46645.0,46640.0,0.21331854]
[1649127592867,0.27476421,46645.0,46640.0,0.21278091]
[1649127593066,0.27476421,46645.0,46640.0,0.21331854]
[1649127594068,0.27476421,46645.0,46640.0,0.21278091]
[1649127594269,0.27476421,46645.0,46640.0,0.21331854]
[1649127595260,0.27476421,46645.0,46640.0,0.21278091]
[1649127595511,0.27476421,46645.0,46640.0,0.21331854]
[1649127596515,0.27476421,46645.0,46640.0,0.21278091]
[1649127596768,0.27476421,46645.0,46640.0,0.21331854]
[1649127597670,0.27476421,46645.0,46640.0,0.21278091]
[1649127597867,0.27476421,46645.0,46640.0,0.21331854]
[1649127598723,0.3,46644.0,46640.0,0.21331854]
[1649127598872,0.3,46644.0,46640.0,0.21278091]